bitfinex/quotes_BTCUSD_20250829
["timestamp","ask_amount","ask_price","bid_price","bid_amount"]
[1756492001027,0.39363676,108370.0,108360.0,0.00518]
[1756492001266,0.39363676,108370.0,108360.0,0.18974995]
[1756492001728,0.39368087,108370.0,108360.0,0.18974995]
[1756492003751,0.20912795,108370.0,108360.0,0.18974995]
[1756492003895,0.20912795,108370.0,108360.0,0.74821624]
[1756492004726,0.20912795,108370.0,108360.0,0.83651256]
[1756492005368,0.20912795,108370.0,108360.0,1.66407885]
[1756492005606,0.20912795,108370.0,108360.0,2.06407885]
[1756492005803,0.20812795,108370.0,108360.0,2.06407885]
[1756492006038,0.20812795,108370.0,108360.0,1.66407885]
[1756492006237,0.20812795,108370.0,108360.0,1.66507885]
[1756492006410,0.20812795,108370.0,108360.0,1.50661256]
[1756492006612,0.20812795,108370.0,108360.0,1.50861256]
[1756492007197,0.20812795,108370.0,108360.0,1.66869256]
[1756492007397,0.20812795,108370.0,108360.0,0.95014627]
[1756492007607,0.20812795,108370.0,108360.0,1.66869256]
[1756492007810,0.39466087,108370.0,108360.0,1.11022627]
[1756492008186,0.39268087,108370.0,108360.0,0.55014627]
[1756492008545,0.20812795,108370.0,108360.0,0.71022627]
[1756492008775,0.39268087,108370.0,108360.0,0.71022627]
[1756492009753,0.20812795,108370.0,108360.0,0.71022627]
[1756492010179,0.39268087,108370.0,108360.0,0.71022627]
[1756492010748,0.20812795,108370.0,108360.0,0.71022627]
[1756492010954,0.39268087,108370.0,108360.0,0.71022627]
[1756492012193,0.39271863,108370.0,108360.0,0.71022627]
[1756492012404,0.39469863,108370.0,108360.0,0.43238]
[1756492012607,0.18107278,108370.0,108360.0,0.2723]
[1756492012814,0.73953907,108370.0,108360.0,0.2723]
[1756492013419,0.74174907,108370.0,108360.0,0.0012]
[1756492013747,1.08174907,108370.0,108360.0,0.0012]
[1756492014090,1.08174907,108370.0,108360.0,0.0002]
[1756492014817,1.19098421,108370.0,108360.0,0.0012]
[1756492015016,1.21182725,108370.0,108360.0,0.0012]
[1756492015240,0.65336096,108370.0,108360.0,0.0012]
[1756492015414,1.37190725,108370.0,108360.0,0.0002]
[1756492015595,6.90668783,108370.0,108360.0,0.0002]
[1756492015801,6.92936809,108370.0,108360.0,0.0002]
[1756492016063,5.81243551,108370.0,108360.0,0.0002]
[1756492016205,6.3709018,108370.0,108360.0,0.0002]
[1756492016609,6.38634894,108370.0,108360.0,0.0002]
[1756492016812,5.74258633,108370.0,108360.0,0.0002]
[1756492017232,1.29884262,108370.0,108360.0,0.0002]
[1756492017369,1.30105262,108370.0,108360.0,0.0002]
[1756492017779,1.30005262,108370.0,108360.0,0.0002]
[1756492018156,1.13776262,108370.0,108360.0,0.0002]
[1756492018355,1.38313894,108370.0,108360.0,0.0002]
[1756492018752,1.22305894,108370.0,108360.0,0.0002]
[1756492018959,0.82467265,108370.0,108360.0,0.0002]
[1756492019159,1.3831184,108370.0,108360.0,0.00534]
[1756492019540,1.09396022,108370.0,108360.0,0.00231]
[1756492019750,1.09396022,108370.0,108360.0,0.00534]
[1756492019923,1.25404022,108370.0,108360.0,0.00534]
[1756492020464,1.25404022,108370.0,108360.0,0.0002]
[1756492020676,0.69557393,108370.0,108360.0,0.00534]
[1756492020880,0.69359393,108370.0,108360.0,0.00534]
[1756492021022,0.69359393,108370.0,108360.0,0.18990995]
[1756492021442,0.69557393,108370.0,108360.0,0.00534]
[1756492021682,0.66993421,108370.0,108360.0,0.00534]
[1756492021821,0.69359492,108370.0,108360.0,0.18990995]
[1756492022024,0.69459492,108370.0,108360.0,0.19090995]
[1756492022378,0.69359492,108370.0,108360.0,0.19090995]
[1756492022592,0.69359501,108370.0,108360.0,0.19090995]
[1756492022799,0.69359501,108370.0,108360.0,0.00634]
[1756492023099,0.69557501,108370.0,108360.0,0.0012]
[1756492023492,0.69557501,108370.0,108360.0,0.19090995]
[1756492023665,0.69359501,108370.0,108360.0,0.19090995]
[1756492023871,0.69557501,108370.0,108360.0,0.0012]
[1756492024027,0.68112787,108370.0,108360.0,0.0012]
[1756492025113,1.23959416,108370.0,108360.0,0.0012]
[1756492025352,1.3510393,108370.0,108360.0,0.0012]
[1756492025555,1.3488293,108370.0,108360.0,0.0012]
[1756492025756,1.26053298,108370.0,108360.0,0.0012]
[1756492026503,0.51906787,108370.0,108360.0,0.19090995]
[1756492026707,0.1837408,108370.0,108360.0,0.74937624]
[1756492027062,0.1837408,108370.0,108360.0,0.19090995]
[1756492027389,0.36829372,108370.0,108360.0,0.74937624]
[1756492027933,0.36829372,108370.0,108360.0,0.00634]
[1756492028149,0.36829372,108370.0,108360.0,0.19090995]
[1756492028558,0.36828942,108370.0,108360.0,0.19090995]
[1756492028997,0.0236565,108370.0,108360.0,0.74937624]
[1756492029198,0.0236565,108370.0,108360.0,0.83767256]
[1756492029400,0.0236565,108370.0,108360.0,1.10677256]
[1756492030223,0.01720473,108370.0,108360.0,1.10677256]
[1756492030677,0.01720473,108370.0,108360.0,1.10577256]
[1756492030891,4.769e-05,108380.0,108370.0,0.18455292]
[1756492031087,4.769e-05,108380.0,108370.0,0.99442553]
[1756492031279,0.01725579,108380.0,108370.0,0.99653553]
[1756492031461,0.01725579,108380.0,108370.0,0.43806924]
[1756492031632,0.01725579,108380.0,108370.0,0.27798924]
[1756492031835,0.01923579,108380.0,108370.0,0.70712924]
[1756492032026,0.18458358,108380.0,108370.0,0.70712924]
[1756492032229,0.7686835,108380.0,108370.0,0.45576292]
[1756492032426,0.21021721,108380.0,108370.0,0.2721]
[1756492032629,0.21021721,108380.0,108370.0,0.46179292]
[1756492032842,0.21021721,108380.0,108370.0,0.45879292]
[1756492033174,0.21021721,108380.0,108370.0,0.46079292]
[1756492033913,0.7686835,108380.0,108370.0,0.2711]
[1756492034100,1.1108935,108380.0,108370.0,0.2711]
[1756492034634,1.1108935,108380.0,108370.0,0.2731]
[1756492035037,1.1108935,108380.0,108370.0,0.2691]
[1756492035294,0.18455292,108370.0,108360.0,0.0002]
[1756492035454,1.29064085,108370.0,108360.0,0.0002]
[1756492035665,0.71021937,108370.0,108360.0,0.0002]
[1756492036073,1.29262085,108370.0,108360.0,0.0002]
[1756492036498,1.38091717,108370.0,108360.0,0.0002]
[1756492036750,1.38312717,108370.0,108360.0,0.0022]
[1756492036881,1.38312717,108370.0,108360.0,0.0042]
[1756492037494,1.29483085,108370.0,108360.0,0.0042]
[1756492037896,1.29483085,108370.0,108360.0,0.0022]
[1756492038205,1.29483085,108370.0,108360.0,0.0002]
[1756492038409,1.34201156,108370.0,108360.0,0.0002]
[1756492038614,0.73336819,108370.0,108360.0,0.0012]
[1756492038814,1.40506599,108370.0,108360.0,0.0012]
[1756492039005,1.40506599,108370.0,108360.0,0.0002]
[1756492039206,1.40876699,108370.0,108360.0,0.0002]
[1756492039623,1.24872699,108370.0,108360.0,0.0002]
[1756492039825,1.40876699,108370.0,108360.0,0.0002]
[1756492040546,0.57802919,108370.0,108360.0,0.0002]
[1756492040754,1.31826067,108370.0,108360.0,0.0002]
[1756492040944,1.32047067,108370.0,108360.0,0.0002]
[1756492042716,1.32045388,108370.0,108360.0,0.0002]
[1756492043263,1.32045387,108370.0,108360.0,0.0002]
[1756492043691,0.57580239,108370.0,108360.0,0.0002]
[1756492043892,0.82413871,108370.0,108360.0,0.0002]
[1756492044020,1.40654019,108370.0,108360.0,0.0002]
[1756492044233,1.40875019,108370.0,108360.0,0.0002]
[1756492045256,1.59331019,108370.0,108360.0,0.0002]
[1756492045623,1.00869871,108370.0,108360.0,0.0002]
[1756492045848,1.59110019,108370.0,108360.0,0.0002]
[1756492046456,1.51725032,108370.0,108360.0,0.0002]
[1756492047074,1.51946032,108370.0,108360.0,0.0002]
[1756492048007,1.51725032,108370.0,108360.0,0.0002]
[1756492049390,1.35721032,108370.0,108360.0,0.0002]
[1756492049597,1.51354932,108370.0,108360.0,0.00231]
[1756492049793,1.58535438,108370.0,108360.0,0.00231]
[1756492050028,1.58535438,108370.0,108360.0,0.0002]
[1756492051013,1.58756438,108370.0,108360.0,0.0002]
[1756492051417,1.58535438,108370.0,108360.0,0.0002]
[1756492051878,0.76912784,108370.0,108360.0,0.00555]
[1756492052102,1.51156932,108370.0,108360.0,0.00555]
[1756492052248,1.51354932,108370.0,108360.0,0.0002]
[1756492052983,1.51574932,108370.0,108360.0,0.0002]
[1756492053184,1.51575719,108370.0,108360.0,0.0002]
[1756492053426,1.60405351,108370.0,108360.0,0.0002]
[1756492054447,1.60775451,108370.0,108360.0,0.0002]
[1756492055270,0.92917571,108370.0,108360.0,0.00555]
[1756492055603,1.48835786,108370.0,108360.0,0.00555]
[1756492055791,1.49033786,108370.0,108360.0,0.00231]
[1756492056007,1.49033786,108370.0,108360.0,0.0002]
[1756492056780,1.57863418,108370.0,108360.0,0.0002]
[1756492056981,1.41859418,108370.0,108360.0,0.0002]
[1756492057178,1.57863418,108370.0,108360.0,0.0002]
[1756492057388,1.58084418,108370.0,108360.0,0.0002]
[1756492058443,2.14002633,108370.0,108360.0,0.0002]
[1756492059924,1.58084418,108370.0,108360.0,0.0002]
[1756492060129,2.14002376,108370.0,108360.0,0.0002]
[1756492060338,1.58084161,108370.0,108360.0,0.0002]
[1756492060935,7.14002376,108370.0,108360.0,0.0002]
[1756492061135,7.14538272,108370.0,108360.0,0.0002]
[1756492061354,6.02701842,108370.0,108360.0,0.0002]
[1756492061594,7.14538272,108370.0,108360.0,0.0002]
[1756492061763,5.86697842,108370.0,108360.0,0.0002]
[1756492061964,0.75666669,108370.0,108360.0,0.00231]
[1756492062193,1.4957147,108370.0,108360.0,0.00231]
[1756492062564,1.47390884,108370.0,108360.0,0.00555]
[1756492063238,1.47588884,108370.0,108360.0,0.00555]
[1756492063441,1.49572857,108370.0,108360.0,0.0002]
[1756492063636,1.58407013,108370.0,108360.0,0.0002]
[1756492063858,0.52456995,108360.0,108350.0,0.00344]
[1756492064062,0.52456995,108360.0,108350.0,0.0002]
[1756492064063,1.26747229,108360.0,108350.0,0.0002]
[1756492064267,0.70829014,108360.0,108350.0,0.00231]
[1756492064431,1.26747229,108360.0,108350.0,0.00555]
[1756492064631,0.70829014,108360.0,108350.0,0.00555]
[1756492064881,1.26747229,108360.0,108350.0,0.00555]
[1756492065086,1.26747229,108360.0,108350.0,0.00655]
[1756492065864,1.28191851,108360.0,108350.0,0.00655]
[1756492066061,0.56269636,108360.0,108350.0,0.19113698]
[1756492066490,0.72273636,108360.0,108350.0,0.19113698]
[1756492068694,0.56269636,108360.0,108350.0,0.19113698]
[1756492068888,0.53816641,108360.0,108350.0,0.19113698]
[1756492069095,0.03812641,108360.0,108350.0,0.19113698]
[1756492069875,0.22269636,108360.0,108350.0,0.19113698]
[1756492074007,0.21623813,108360.0,108350.0,0.19113698]
[1756492074174,0.22270632,108360.0,108350.0,0.19113698]
[1756492074592,0.86570405,108360.0,108350.0,0.0012]
[1756492074790,1.85104823,108360.0,108350.0,0.0012]
[1756492074991,2.03560823,108360.0,108350.0,0.0012]
[1756492076055,7.05543996,108360.0,108350.0,0.0002]
[1756492076694,7.06988824,108360.0,108350.0,0.0002]
[1756492076847,0.5455258,108350.0,108340.0,0.0002]
[1756492077047,6.2149517,108350.0,108340.0,0.0002]
[1756492077255,1.4014917,108350.0,108340.0,0.0002]
[1756492077457,1.42497683,108350.0,108340.0,0.0002]
[1756492077860,1.42718683,108350.0,108340.0,0.0002]
[1756492078501,1.42497683,108350.0,108340.0,0.0002]
[1756492078700,1.49841458,108350.0,108340.0,0.0002]
[1756492080337,1.49643458,108350.0,108340.0,0.00537]
[1756492080686,1.50061458,108350.0,108340.0,0.0002]
[1756492080898,1.49841458,108350.0,108340.0,0.0002]
[1756492081500,1.33841458,108350.0,108340.0,0.00216]
[1756492081700,0.9137673,108350.0,108340.0,0.00537]
[1756492082885,0.9157473,108350.0,108340.0,0.0002]
[1756492083121,0.9137673,108350.0,108340.0,0.00537]
[1756492083447,0.89654523,108350.0,108340.0,0.00537]
[1756492083646,0.89281844,108350.0,108340.0,0.18997402]
[1756492084026,0.89479844,108350.0,108340.0,0.0002]
[1756492084230,0.89479844,108350.0,108340.0,0.00216]
[1756492084424,0.98309545,108350.0,108340.0,0.00537]
[1756492084542,0.98111545,108350.0,108340.0,0.00537]
[1756492084756,0.98111545,108350.0,108340.0,0.00637]
[1756492085278,0.98309545,108350.0,108340.0,0.00637]
[1756492085677,0.98111545,108350.0,108340.0,0.00637]
[1756492085913,0.56267984,108350.0,108340.0,0.19097402]
[1756492086114,0.56726682,108350.0,108340.0,0.19097402]
[1756492086717,0.56726682,108350.0,108340.0,0.00537]
[1756492087145,0.56726781,108350.0,108340.0,0.00737]
[1756492087559,0.56924781,108350.0,108340.0,0.00737]
[1756492087722,1.16862757,108350.0,108340.0,0.0022]
[1756492087920,1.16862757,108350.0,108340.0,0.0032]
[1756492088164,1.16862757,108350.0,108340.0,0.00516]
[1756492088393,1.16862757,108350.0,108340.0,0.00837]
[1756492088571,1.16862757,108350.0,108340.0,0.00737]
[1756492089118,1.50862757,108350.0,108340.0,0.0022]
[1756492089341,1.53177639,108350.0,108340.0,0.0022]
[1756492090233,1.52956639,108350.0,108340.0,0.0022]
[1756492090666,1.52956639,108350.0,108340.0,0.0002]
[1756492090882,1.53177639,108350.0,108340.0,0.0002]
[1756492091101,0.94910911,108350.0,108340.0,0.0002]
[1756492091320,1.52956639,108350.0,108340.0,0.0002]
[1756492091544,0.94689911,108350.0,108340.0,0.0002]
[1756492091770,1.52956639,108350.0,108340.0,0.0002]
[1756492092160,1.53177639,108350.0,108340.0,0.0002]
[1756492093082,6.53177639,108350.0,108340.0,0.0002]
[1756492093336,6.53715352,108350.0,108340.0,0.0002]
[1756492093865,6.51993692,108350.0,108340.0,0.0002]
[1756492094068,6.53813764,108350.0,108340.0,0.0002]
[1756492094271,6.58045567,108350.0,108340.0,0.0002]
[1756492095075,6.58415767,108350.0,108340.0,0.0002]
[1756492096437,6.56433285,108350.0,108340.0,0.0002]
[1756492096644,6.57878205,108350.0,108340.0,0.0002]
[1756492097401,6.55565383,108350.0,108340.0,0.0002]
[1756492097735,6.55344383,108350.0,108340.0,0.0002]
[1756492098632,6.55565383,108350.0,108340.0,0.0002]
[1756492098882,6.39565383,108350.0,108340.0,0.0002]
[1756492099081,6.55344383,108350.0,108340.0,0.0002]
[1756492099286,6.55565383,108350.0,108340.0,0.0002]
[1756492100496,6.57546948,108350.0,108340.0,0.0002]
[1756492103373,6.57325948,108350.0,108340.0,0.0002]
[1756492103530,6.57546948,108350.0,108340.0,0.0002]
[1756492104416,6.5690175,108350.0,108340.0,0.0002]
[1756492104612,6.5754833,108350.0,108340.0,0.0002]
[1756492104833,6.5732733,108350.0,108340.0,0.0002]
[1756492105045,6.5754833,108350.0,108340.0,1e-08]
[1756492105904,6.40011844,108350.0,108340.0,1e-08]
[1756492106300,6.24011844,108350.0,108340.0,1e-08]
[1756492106567,6.40011844,108350.0,108340.0,1e-08]
[1756492107501,6.24011844,108350.0,108340.0,1e-08]
[1756492107859,6.39790844,108350.0,108340.0,1e-08]
[1756492108469,6.40011844,108350.0,108340.0,1e-08]
[1756492108675,6.39790844,108350.0,108340.0,1e-08]
[1756492108833,6.40011844,108350.0,108340.0,1e-08]
[1756492109506,6.39790844,108350.0,108340.0,1e-08]
[1756492109909,6.40011844,108350.0,108340.0,1e-08]
[1756492110992,6.23790844,108350.0,108340.0,1e-08]
[1756492111192,6.39790844,108350.0,108340.0,1e-08]
[1756492111390,6.40011844,108350.0,108340.0,1e-08]
[1756492111748,6.39790844,108350.0,108340.0,1e-08]
[1756492111923,1.39592844,108350.0,108340.0,0.00507001]
[1756492112145,1.37611279,108350.0,108340.0,0.00507001]
[1756492112786,1.17846149,108350.0,108340.0,0.00507001]
[1756492112992,0.76447323,108350.0,108340.0,0.00507001]
[1756492113193,1.32401229,108350.0,108340.0,0.00507001]
[1756492113608,1.34495111,108350.0,108340.0,0.00507001]
[1756492114579,1.34693111,108350.0,108340.0,1e-08]
[1756492114890,1.41155635,108350.0,108340.0,0.00208001]
[1756492115066,1.41155635,108350.0,108340.0,1e-08]
[1756492115067,1.43522882,108350.0,108340.0,1e-08]
[1756492115647,1.43522882,108350.0,108340.0,0.00208001]
[1756492116007,1.43522882,108350.0,108340.0,1e-08]
[1756492116214,6.45188839,108350.0,108340.0,1e-08]
[1756492116452,0.54554284,108340.0,108330.0,0.0002]
[1756492116617,6.38620583,108340.0,108330.0,0.00319]
[1756492116829,1.38620583,108340.0,108330.0,0.00527]
[1756492117041,1.22624583,108340.0,108330.0,0.00527]
[1756492117197,1.41397083,108340.0,108330.0,0.00527]
[1756492117803,1.41397083,108340.0,108330.0,0.00541323]
[1756492118258,1.32567451,108340.0,108330.0,0.00541323]
[1756492120072,0.76613545,108340.0,108330.0,0.00541323]
[1756492120275,1.32567451,108340.0,108330.0,0.00541323]
[1756492121930,1.32569346,108340.0,108330.0,0.00541323]
[1756492122050,1.32767346,108340.0,108330.0,0.00541323]
[1756492122252,1.41596978,108340.0,108330.0,0.00034323]
[1756492122912,1.41817978,108340.0,108330.0,0.00034323]
[1756492123519,1.48696978,108340.0,108330.0,0.00034323]
[1756492123728,1.32709978,108340.0,108330.0,0.00034323]
[1756492123932,0.81621558,108340.0,108330.0,0.00541323]
[1756492124316,0.74621558,108340.0,108330.0,0.19003429]
[1756492124595,0.71845058,108340.0,108330.0,0.00541323]
[1756492124781,0.7393894,108340.0,108330.0,0.00541323]
[1756492125191,0.7383894,108340.0,108330.0,0.00541323]
[1756492125389,0.73839751,108340.0,108330.0,0.00541323]
[1756492125589,0.73939751,108340.0,108330.0,0.00541323]
[1756492126034,0.73939751,108340.0,108330.0,0.19003429]
[1756492126237,0.23943751,108340.0,108330.0,0.19003429]
[1756492126650,0.39839751,108340.0,108330.0,0.19003429]
[1756492127623,0.39839751,108340.0,108330.0,0.19203429]
[1756492127819,0.39839751,108340.0,108330.0,0.19303429]
[1756492128457,0.95991657,108340.0,108330.0,0.00841323]
[1756492128656,0.95793657,108340.0,108330.0,0.00841323]
[1756492128863,0.95990825,108340.0,108330.0,0.00841323]
[1756492129061,0.99469417,108340.0,108330.0,0.00334323]
[1756492129389,1.33469417,108340.0,108330.0,0.00334323]
[1756492129954,1.33482417,108340.0,108330.0,0.00337323]
[1756492130569,0.57842919,108340.0,108330.0,0.00549323]
[1756492130741,1.29792825,108340.0,108330.0,0.00549323]
[1756492132210,1.30002825,108340.0,108330.0,0.00034323]
[1756492133386,1.30210825,108340.0,108330.0,0.00034323]
[1756492133624,1.32987225,108340.0,108330.0,0.00034323]
[1756492133828,1.41816857,108340.0,108330.0,0.00034323]
[1756492134023,1.48708857,108340.0,108330.0,0.00034323]
[1756492135124,1.48916857,108340.0,108330.0,0.00034323]
[1756492135335,1.48708857,108340.0,108330.0,0.00034323]
[1756492135875,1.48708314,108340.0,108330.0,0.00034323]
[1756492136095,1.5015333,108340.0,108330.0,0.00034323]
[1756492136522,1.50153346,108340.0,108330.0,0.00034323]
[1756492137136,1.50253346,108340.0,108330.0,0.00034323]
[1756492138188,1.41423714,108340.0,108330.0,0.00034323]
[1756492139560,0.69263808,108340.0,108330.0,0.00549323]
[1756492139759,1.25217714,108340.0,108330.0,0.00549323]
[1756492140041,1.41273714,108340.0,108330.0,0.00549323]
[1756492140243,1.25217714,108340.0,108330.0,0.00549323]
[1756492140467,1.41273714,108340.0,108330.0,0.00549323]
[1756492140804,1.41173714,108340.0,108330.0,0.00549323]
[1756492141009,0.85219808,108340.0,108330.0,0.00549323]
[1756492141326,1.41173714,108340.0,108330.0,0.00549323]
[1756492141509,1.41173714,108340.0,108330.0,0.00649323]
[1756492141850,1.41173924,108340.0,108330.0,0.00849323]
[1756492142270,0.62064018,108340.0,108330.0,0.00849323]
[1756492142467,1.34069924,108340.0,108330.0,0.00849323]
[1756492144023,0.75327618,108340.0,108330.0,0.19311429]
[1756492144531,0.40827216,108340.0,108330.0,0.19311429]
[1756492144770,0.73878602,108340.0,108330.0,0.19311429]
[1756492145022,0.73878602,108340.0,108330.0,0.00849323]
[1756492145250,1.28307817,108340.0,108330.0,0.00849323]
[1756492145481,1.30030793,108340.0,108330.0,0.00537323]
[1756492145679,1.30030793,108340.0,108330.0,0.00849323]
[1756492145907,1.29832761,108340.0,108330.0,0.00849323]
[1756492146206,1.29832478,108340.0,108330.0,0.00849323]
[1756492146866,1.30030478,108340.0,108330.0,0.00334323]
[1756492147107,1.4163651,108340.0,108330.0,0.00334323]
[1756492147529,1.4163651,108340.0,108330.0,0.00234323]
[1756492147953,0.85682604,108340.0,108330.0,0.00034323]
[1756492148087,1.34251816,108340.0,108330.0,0.00034323]
[1756492148564,0.7829791,108340.0,108330.0,0.00237323]
[1756492148769,1.34041588,108340.0,108330.0,0.00549323]
[1756492149162,0.78083682,108340.0,108330.0,0.00549323]
[1756492149362,1.34137588,108340.0,108330.0,0.00549323]
[1756492150301,0.78183682,108340.0,108330.0,0.00549323]
[1756492150497,1.18117588,108340.0,108330.0,0.00549323]
[1756492150704,1.34137588,108340.0,108330.0,0.19011429]
[1756492151006,1.31353188,108340.0,108330.0,0.19011429]
[1756492151267,1.31353188,108340.0,108330.0,0.00549323]
[1756492151396,1.31353188,108340.0,108330.0,0.19011429]
[1756492152123,1.2990825,108340.0,108330.0,0.19011429]
[1756492152324,0.73854344,108340.0,108330.0,0.19011429]
[1756492152637,0.57842344,108340.0,108330.0,0.19111429]
[1756492152879,0.05381942,108340.0,108330.0,0.19111429]
[1756492153094,0.39842344,108340.0,108330.0,0.19111429]
[1756492153293,0.39842344,108340.0,108330.0,0.19211429]
[1756492153954,0.39842344,108340.0,108330.0,0.46121429]
[1756492154948,0.21381942,108340.0,108330.0,0.46121429]
[1756492155108,0.39842344,108340.0,108330.0,0.46121429]
[1756492155520,0.21381942,108340.0,108330.0,0.46121429]
[1756492155723,0.04734802,108340.0,108330.0,0.46121429]
[1756492155924,0.05380333,108340.0,108330.0,1.10904967]
[1756492156296,0.05380378,108340.0,108330.0,1.10904967]
[1756492156463,0.03658972,108340.0,108330.0,0.70959061]
[1756492156628,0.05379961,108340.0,108330.0,0.70959061]
[1756492158285,0.05379961,108340.0,108330.0,0.70943061]
[1756492159097,0.05379961,108340.0,108330.0,0.54951061]
[1756492159274,0.23840363,108340.0,108330.0,0.70943061]
[1756492159474,0.05379961,108340.0,108330.0,0.70943061]
[1756492159879,0.05379961,108340.0,108330.0,0.44033061]
[1756492161894,0.05379961,108340.0,108330.0,0.99986967]
[1756492162077,0.05379961,108340.0,108330.0,0.44033061]
[1756492162274,0.05379961,108340.0,108330.0,0.99986967]
[1756492162893,0.04734385,108340.0,108330.0,0.44033061]
[1756492163081,0.04734385,108340.0,108330.0,0.28041061]
[1756492163278,0.04734385,108340.0,108330.0,0.99986967]
[1756492163685,0.04734385,108340.0,108330.0,0.83894967]
[1756492163890,0.04734385,108340.0,108330.0,0.99786967]
[1756492164288,0.04734385,108340.0,108330.0,1.00186967]
[1756492164688,0.04734385,108340.0,108330.0,0.28241061]
[1756492164888,0.04734385,108340.0,108330.0,0.44533061]
[1756492165567,0.04932385,108340.0,108330.0,0.28541061]
[1756492165781,0.79991243,108340.0,108330.0,0.55451061]
[1756492165980,0.79991243,108340.0,108330.0,0.71443061]
[1756492166183,0.79991243,108340.0,108330.0,0.71143061]
[1756492166184,0.79989066,108340.0,108330.0,0.71143061]
[1756492166403,0.40027164,108340.0,108330.0,0.27344323]
[1756492166603,0.9598107,108340.0,108330.0,0.27344323]
[1756492166776,0.95981138,108340.0,108330.0,0.46333429]
[1756492166930,0.95981085,108340.0,108330.0,0.46433429]
[1756492167130,0.39829179,108340.0,108330.0,0.46033429]
[1756492167352,0.40027179,108340.0,108330.0,0.46133429]
[1756492167771,0.39829179,108340.0,108330.0,0.46033429]
[1756492168084,0.40027179,108340.0,108330.0,0.46033429]
[1756492168324,0.40027179,108340.0,108330.0,0.45933429]
[1756492168447,0.40027179,108340.0,108330.0,0.46033429]
[1756492168902,0.40027179,108340.0,108330.0,0.27256323]
[1756492169100,0.95981085,108340.0,108330.0,0.27044323]
[1756492169993,0.95981085,108340.0,108330.0,0.45506429]
[1756492170197,0.95981085,108340.0,108330.0,0.46033429]
[1756492170732,0.95981085,108340.0,108330.0,0.19123429]
[1756492172026,0.79791085,108340.0,108330.0,0.19123429]
[1756492172225,0.05376777,108340.0,108330.0,0.19123429]
[1756492172535,0.23837179,108340.0,108330.0,0.19123429]
[1756492172749,0.23837179,108340.0,108330.0,0.35115429]
[1756492173156,0.24035179,108340.0,108330.0,0.35115429]
[1756492173460,0.79989085,108340.0,108330.0,0.00134323]
[1756492173972,0.98757185,108340.0,108330.0,0.00134323]
[1756492174346,0.98757185,108340.0,108330.0,0.18596429]
[1756492174542,0.98757185,108340.0,108330.0,0.00134323]
[1756492174734,0.95981085,108340.0,108330.0,0.00134323]
[1756492175582,0.95981085,108340.0,108330.0,0.18596429]
[1756492175980,0.95981085,108340.0,108330.0,0.19123429]
[1756492176180,0.95981085,108340.0,108330.0,0.00661323]
[1756492176545,0.95337208,108340.0,108330.0,0.00134323]
[1756492176884,0.40028116,108340.0,108330.0,0.00134323]
[1756492177085,0.95982022,108340.0,108330.0,0.00134323]
[1756492177215,0.98758022,108340.0,108330.0,0.00134323]
[1756492179296,0.98754022,108340.0,108330.0,0.18596429]
[1756492179638,0.42800116,108340.0,108330.0,0.19123429]
[1756492179840,0.26812116,108340.0,108330.0,0.19123429]
[1756492180041,0.42800116,108340.0,108330.0,0.19123429]
[1756492180264,0.98754022,108340.0,108330.0,0.19123429]
[1756492180848,0.26812116,108340.0,108330.0,0.19123429]
[1756492181050,0.98754022,108340.0,108330.0,0.19123429]
[1756492181502,0.98754022,108340.0,108330.0,0.00661323]
[1756492181705,0.98754022,108340.0,108330.0,0.00892099]
[1756492182270,0.98754022,108340.0,108330.0,0.00661323]
[1756492182827,0.98754022,108340.0,108330.0,0.00134323]
[1756492183043,0.98754022,108340.0,108330.0,0.00661323]
[1756492183408,0.98754022,108340.0,108330.0,0.00134323]
[1756492184270,0.98974022,108340.0,108330.0,0.00134323]
[1756492184605,1.35624898,108340.0,108330.0,0.00134323]
[1756492184780,1.35626732,108340.0,108330.0,0.00134323]
[1756492185389,1.37071646,108340.0,108330.0,0.00134323]
[1756492185709,1.37071553,108340.0,108330.0,0.00134323]
[1756492186121,0.62060771,108340.0,108330.0,0.19123429]
[1756492186322,0.07506487,108340.0,108330.0,0.83906967]
[1756492186529,0.03285573,108340.0,108330.0,0.83906967]
[1756492187711,0.05379455,108340.0,108330.0,0.83906967]
[1756492188318,0.05379455,108340.0,108330.0,1.39894967]
[1756492193867,0.05379455,108340.0,108330.0,1.23906967]
[1756492194024,0.05379455,108340.0,108330.0,1.39894967]
[1756492194231,0.05379455,108340.0,108330.0,1.23906967]
[1756492194448,0.05379455,108340.0,108330.0,1.39894967]
[1756492195067,0.03013396,108340.0,108330.0,1.39894967]
[1756492195328,0.05379475,108340.0,108330.0,0.67953061]
[1756492195527,0.05379475,108340.0,108330.0,0.83941061]
[1756492196596,0.05379413,108340.0,108330.0,1.39894967]
[1756492197012,0.05379413,108340.0,108330.0,0.99894967]
[1756492197823,0.05379413,108340.0,108330.0,0.43941061]
[1756492198906,0.05379413,108340.0,108330.0,0.43937061]
[1756492199131,0.23839815,108340.0,108330.0,0.27953061]
[1756492199338,0.05379413,108340.0,108330.0,0.43937061]
[1756492200600,0.05379413,108340.0,108330.0,0.99890967]
[1756492200806,0.05379413,108340.0,108330.0,0.43937061]
[1756492201011,0.05379413,108340.0,108330.0,0.99890967]
[1756492202370,0.05379413,108340.0,108330.0,0.27953061]
[1756492202517,0.05379413,108340.0,108330.0,0.43937061]
[1756492202729,0.05379413,108340.0,108330.0,0.83906967]
[1756492202934,0.05379413,108340.0,108330.0,0.99890967]
[1756492203226,0.05379413,108340.0,108330.0,0.84106967]
[1756492203416,0.05379413,108340.0,108330.0,0.99990967]
[1756492203827,0.05379413,108340.0,108330.0,0.44037061]
[1756492204195,0.05379413,108340.0,108330.0,0.84037061]
[1756492204403,0.05377938,108340.0,108330.0,0.84037061]
[1756492205166,0.05377938,108340.0,108330.0,0.68053061]
[1756492205367,0.05377938,108340.0,108330.0,0.84137061]
[1756492205515,0.2403634,108340.0,108330.0,0.44137061]
[1756492205732,0.05575938,108340.0,108330.0,0.44137061]
[1756492205879,0.2403634,108340.0,108330.0,0.27838061]
[1756492206084,0.2403634,108340.0,108330.0,0.43822061]
[1756492206550,0.80211246,108340.0,108330.0,0.00334323]
[1756492206775,0.79990246,108340.0,108330.0,0.18796429]
[1756492206935,0.2403634,108340.0,108330.0,0.34780429]
[1756492207138,0.79990246,108340.0,108330.0,0.34780429]
[1756492207536,0.79990246,108340.0,108330.0,0.16218323]
[1756492207757,0.80211246,108340.0,108330.0,0.00234323]
[1756492207962,0.82987146,108340.0,108330.0,0.00034323]
[1756492208168,0.82766146,108340.0,108330.0,0.00034323]
[1756492208942,0.82766146,108340.0,108330.0,0.18496429]
[1756492209334,0.82766146,108340.0,108330.0,0.00034323]
[1756492209540,0.82766146,108340.0,108330.0,0.00236323]
[1756492209739,0.08153838,108340.0,108330.0,0.84030743]
[1756492209944,0.05377938,108340.0,108330.0,0.83799967]
[1756492210175,0.05377938,108340.0,108330.0,0.27846061]